Cogmind - Beta 13 @@@ ROGUE MODE // 2024.05.26 @ 10:06:53 Player: TurnLeft25 Result: Destroyed by Y-45 Defender with Heavy Assault Rifle Performance ------------- Evolutions (2) 1000 Regions Visited (4) 800 Robots Destroyed (56) 280 Value Destroyed (1610) 1610 Prototype IDs (5) 100 Alien Tech Used (0) 0 Bonus (249) 249 TOTAL SCORE: 4039 Bonus ------- High Alert Combat Kills 49 Entered Garrisons 200 Cogmind --------- Core Integrity 0/550 Matter 300/300 Energy 100/100 System Corruption 0% Temperature Cool (27) Movement Core (200) Ox3 Location -8/Garrison Parts ------- > --- POWER (1) -------- (None) > --- PROPULSION (2) --- (None) > --- UTILITY (6) ------ Medium Storage Unit Hacking Suite Hacking Suite > --- WEAPON (2) ------- (None) > --- INVENTORY (10) --- Reinforced Ion Engine Light Treads Light Treads Improved Treads Improved Treads Improved Aluminum Leg Advanced Visual Processing Unit Improved Utility Shielding Particle Cannon Peak State ------------ > --- POWER ------------ Improved Ion Engine > --- PROPULSION ------- Light Treads Advanced Treads > --- UTILITY ---------- Advanced Heat Sink Medium Storage Unit Hardened Medium Armor Plating Improved Light Armor Plating Hacking Suite Hacking Suite > --- WEAPON ----------- Particle Cannon High-powered Shotgun > --- INVENTORY -------- Reinforced Ion Engine Light Treads Light Treads Improved Treads Improved Treads Improved Aluminum Leg Advanced Visual Processing Unit Improved Utility Shielding Pulse Rifle Heavy Assault Rifle [Rating: 31] Favorites ----------- Power Ion Engine Engine Ion Engine Propulsion Light Treads Treads Light Treads Leg Aluminum Leg Utility Hacking Suite Device Heat Sink Storage Medium Storage Unit Hackware Hacking Suite Protection Improved Light Armor Plating Weapon Assault Rifle Energy Gun Beam Rifle Energy Cannon Particle Cannon Ballistic Gun Assault Rifle Build | -11 -10 -9 -8 -8 ------- Run | Yrd Mat Mat Mat Gar Slots Evolved 4 | . . 2 2 . Power . | . . . . . Propulsion . | . . . . . Utility 4 | . . 2 2 . Weapon . | . . . . . Parts Attached 42 | 6 3 17 11 5 Power 6 | 1 1 3 1 . Engine 6 | 1 1 3 1 . Core . | . . . . . Reactor . | . . . . . Propulsion 10 | 2 . 5 3 . Treads 8 | . . 5 3 . Leg 2 | 2 . . . . Wheel . | . . . . . Hover . | . . . . . Flight . | . . . . . Utility 15 | 1 2 5 5 2 Device 5 | . . 2 2 1 Storage 2 | 1 1 . . . Processor . | . . . . . Hackware 2 | . . 1 1 . Protection 6 | . 1 2 2 1 Artifact . | . . . . . Weapon 11 | 2 . 4 2 3 Energy Gun 3 | . . 2 . 1 Energy Cannon 1 | . . 1 . . Ballistic Gun 7 | 2 . 1 2 2 Ballistic Cannon . | . . . . . Launcher . | . . . . . Special Weapon . | . . . . . Impact Weapon . | . . . . . Slashing Weapon . | . . . . . Piercing Weapon . | . . . . . Special Melee Weapon . | . . . . . Unidentified Prototypes . | . . . . . Parts Lost 18 | . 2 7 1 8 Power 3 | . . 2 . 1 Propulsion 5 | . 1 2 . 2 Utility 4 | . . 1 1 2 Weapon 6 | . 1 2 . 3 Highest Loss Streak 8 | . 2 4 1 8 To Critical Strikes . | . . . . . Average Slot Usage (%) 95 | . 89 94 99 97 Engine 9 | . 14 9 9 8 Treads 15 | . . 19 18 17 Leg 4 | . 26 . . . Device 7 | . . 9 9 8 Storage 10 | . 14 11 9 9 Hackware 12 | . . 11 18 18 Protection 12 | . 8 10 17 17 Energy Gun 3 | . . 8 . . Energy Cannon 4 | . . 2 9 8 Ballistic Gun 12 | . 26 11 9 8 Naked Turns . | . . . . . Heaviest Build 36 | 14 20 28 31 36 Greatest Support 42 | 20 20 40 42 42 Greatest Overweight (x) 2 | 1 1 2 . 1 Average Overweight (x) . | . . . . . Largest Inventory Capacity 10 | 8 10 10 10 10 Average Capacity 9 | 7 8 10 10 10 Most Carried 10 | 5 6 10 10 10 Average Carried 8 | 1 3 8 9 9 Final Capacity 10 | 8 10 10 10 10 Final Carried 10 | 3 5 10 10 9 Class Distribution -------------------- 75% | Scavenger-Mutant 24% | Mutant Dominant Class ---------------- Mutant | -10/Materials Scavenger-Mutant | -9/Materials Scavenger-Mutant | -8/Materials Scavenger-Mutant | -8/Garrison Resources | -11 -10 -9 -8 -8 ----------- Run | Yrd Mat Mat Mat Gar Matter Collected 1131 | 245 189 390 143 164 Remotely . | . . . . . Salvage Created 1927 | . 324 887 262 454 Parts 128 | . 33 53 17 25 Haulers Intercepted . | . . . . . Recyclers Shooed 4 | . . 4 . . Parts Field Recycled . | . . . . . Retrieved Matter . | . . . . . Parts Self-Destructed . | . . . . . Prevented . | . . . . . Kills | -11 -10 -9 -8 -8 ------- Run | Yrd Mat Mat Mat Gar Combat Hostiles Destroyed 45 | . 9 17 5 14 Guns 29 | . 9 15 . 5 Cannons 14 | . . 2 5 7 Classes Destroyed 11 | . 7 1 1 2 Worker 1 | . 1 . . . Recycler 3 | . 1 2 . . Mechanic 1 | . 1 . . . Operator 4 | . 2 1 1 . Watcher 2 | . 1 1 . . Swarmer 16 | . 6 3 . 7 Grunt 18 | . 3 9 1 5 Brawler 1 | . . . 1 . Duelist 1 | . . . . 1 Sentry 8 | . . 5 3 . Specialist 1 | . . . . 1 Best Kill Streak 5 | . 5 4 3 4 Combat Bots Only 4 | . 4 3 2 4 Max Kills in Single Turn 4 | . 4 1 1 1 Gunslinging 1 | . 1 . . . Exploded . | . . . . . Melee . | . . . . . Uniques/NPCs Destroyed . | . . . . . Combat | -11 -10 -9 -8 -8 -------- Run | Yrd Mat Mat Mat Gar Hostile Shots Fired 337 | . 41 112 32 152 Missed 82 | . 11 22 9 40 Damage Taken 3722 | . 429 1111 351 1831 Core 798 | . 35 205 32 526 Absorbed by Shields 86 | . . . . 86 Core Remaining (%) 78 | 100 86 48 . . Volleys Fired 164 | . 31 76 19 38 Largest 2 | . 2 2 2 2 Hottest 93 | . 40 91 91 93 Shots Fired 313 | . 62 142 38 71 Gun 259 | . 62 140 19 38 Cannon 54 | . . 2 19 33 Launcher . | . . . . . Special . | . . . . . Kinetic 191 | . 62 75 19 35 Thermal 122 | . . 67 19 36 Explosive . | . . . . . Electromagnetic . | . . . . . Robot Hit Streak 17 | . 7 17 14 8 Robot Miss Streak 12 | . 4 12 2 4 Penetration Max . | . . . . . Secondary Targets 4 | . 2 2 . . Max Gunslinging Chain 1 | . 1 1 . . Shots Hit Robots 199 | . 31 99 26 43 Core Hits 90 | . 17 43 8 22 Critical Kills 1 | . . . . 1 Critical Parts Destroyed . | . . . . . Critical Strikes 3 | . . 2 . 1 Burn 2 | . . 2 . . Meltdown 1 | . . . . 1 Melee Attacks . | . . . . . Impact . | . . . . . Slashing . | . . . . . Piercing . | . . . . . Sneak Attacks . | . . . . . Combat Hostiles . | . . . . . Follow-up Attacks . | . . . . . Damage Inflicted 3547 | . 858 1342 475 872 Guns 2269 | . 387 1283 144 455 Cannons 781 | . . 41 328 412 Explosions 471 | . 471 . . . Melee . | . . . . . Ramming 26 | . . 18 3 5 Kinetic 1538 | . 387 604 144 403 Thermal 1983 | . 471 720 328 464 Explosive . | . . . . . Electromagnetic . | . . . . . Impact . | . . . . . Slashing . | . . . . . Piercing . | . . . . . Highest Corruption . | . . . . . Average Corruption . | . . . . . Corruption Purged . | . . . . . Corruption Blocked . | . . . . . Overload Shots . | . . . . . Overflow Damage 258 | . 236 . . 22 Projectiles 22 | . . . . 22 Explosions 236 | . 236 . . . Melee . | . . . . . Knockbacks . | . . . . . Impact . | . . . . . Kinetic . | . . . . . Secondary . | . . . . . Self-Inflicted Damage 177 | . 176 . . 1 Shots 2 | . 2 . . . Rammed 11 | . . 5 1 5 Targets Rammed 12 | . 1 5 1 5 Kicked 1 | . 1 . . . Crushed . | . . . . . Highest Temperature 42 | . 20 16 42 35 Average Temperature 12 | . 7 3 19 15 Received Heat Transfer 1054 | . 30 450 162 412 Siege Activations . | . . . . . Robots Corrupted . | . . . . . Combat Hostiles . | . . . . . Parts Fried . | . . . . . Impact Corruptions . | . . . . . Robots Melted 2 | . . . . 2 Combat Hostiles 2 | . . . . 2 Parts Melted 7 | . . 5 1 1 Heat Transferred 3604 | . 300 1861 592 851 Parts Sabotaged . | . . . . . Parts Stolen . | . . . . . Parts Stripped . | . . . . . Power Chain Reactions . | . . . . . Alert | -11 -10 -9 -8 -8 ------- Run | Yrd Mat Mat Mat Gar Peak Influence 506 | . 471 449 238 506 Initial 198 | . . 198 25 156 Average 221 | . 196 212 133 340 Maximum Alert Level 2 | . 2 2 1 2 Low Security (%) 50 | 100 65 49 87 11 Level 1 33 | . 21 37 12 51 Level 2 16 | . 12 13 . 36 Level 3 . | . . . . . Level 4 . | . . . . . Level 5 . | . . . . . High Security . | . . . . . Max Security . | . . . . . Squads Dispatched 5 | . 2 3 . . Investigation 1 | . . 1 . . Extermination . | . . . . . Reinforcement 4 | . 2 2 . . Assault . | . . . . . Garrison . | . . . . . Intercept . | . . . . . Searches Triggered . | . . . . . Construction Impeded . | . . . . . Haulers Reinforced . | . . . . . Active Scanning Responses . | . . . . . Cargo Convoy Interrupts . | . . . . . Stealth | -11 -10 -9 -8 -8 --------- Run | Yrd Mat Mat Mat Gar Distress Signals 11 | . 3 7 1 . Communications Jammed . | . . . . . Distress Signals . | . . . . . Times Spotted 72 | . 15 28 7 22 Peak Tracking Total 7 | . 4 5 3 7 Tactical Retreats . | . . . . . Traps | -11 -10 -9 -8 -8 ------- Run | Yrd Mat Mat Mat Gar Traps Triggered 2 | . . 1 . 1 Indirectly . | . . . . . Trap Hack Attempts . | . . . . . Triggered . | . . . . . Disarmed . | . . . . . Reprogrammed . | . . . . . Reused . | . . . . . Traps Extracted . | . . . . . Installed . | . . . . . Triggered . | . . . . . Machines | -11 -10 -9 -8 -8 ---------- Run | Yrd Mat Mat Mat Gar Machines Disabled 9 | . 9 . . . Max in Single Turn 9 | . 9 . . . Machines Repaired . | . . . . . Machines Dismantled . | . . . . . Machines Sabotaged . | . . . . . Overloaded Fab Kills . | . . . . . Hacking | -11 -10 -9 -8 -8 --------- Run | Yrd Mat Mat Mat Gar Machines Accessed 14 | . 3 6 4 1 Terminals 13 | . 3 6 3 1 Fabricators . | . . . . . Repair Stations . | . . . . . Recycling Units . | . . . . . Scanalyzers . | . . . . . Garrison Access 1 | . . . 1 . Total Hacks 35 | . 7 12 14 2 Successful 20 | . 2 8 9 1 Failed 15 | . 5 4 5 1 Catastrophic 4 | . 2 1 . 1 Database Lockouts . | . . . . . Manual 13 | . 3 3 6 1 Terminals 33 | . 7 12 12 2 Fabricators . | . . . . . Repair Stations . | . . . . . Recycling Units . | . . . . . Scanalyzers . | . . . . . Garrison Access 2 | . . . 2 . Terminal Hacks 19 | . 2 8 8 1 Record 2 | . . 2 . . Prototype ID Bank 2 | . 1 . 1 . Branch Access Points 3 | . . 1 2 . Emergency Access Points 2 | . . 1 . 1 Garrison Index 1 | . . . 1 . Alert Level 1 | . . . 1 . Unreport Threat 2 | . . 2 . . Locate Traps 1 | . 1 . . . Zone Layout 5 | . . 2 3 . Fabricator Hacks . | . . . . . Repair Station Hacks . | . . . . . Recycling Unit Hacks . | . . . . . Scanalyzer . | . . . . . Garrison Access Hacks 1 | . . . 1 . Unlock Access 1 | . . . 1 . Unauthorized Hacks . | . . . . . Terminals . | . . . . . Fabricators . | . . . . . Repair Stations . | . . . . . Recycling Units . | . . . . . Scanalyzers . | . . . . . Garrison Access . | . . . . . Data Cores Recovered 1 | . . . 1 . Used . | . . . . . Hacking Detections 11 | . 3 4 3 1 Full Trace Events . | . . . . . Feedback Events . | . . . . . Feedback Blocked . | . . . . . Robot Schematics Acquired . | . . . . . Robots Built . | . . . . . Authchips . | . . . . . Time . | . . . . . Total Robot Build Rating . | . . . . . Part Schematics Acquired . | . . . . . Parts Built . | . . . . . Authchips . | . . . . . Time . | . . . . . Total Part Build Rating . | . . . . . Parts Repaired . | . . . . . Time . | . . . . . Parts Recycled . | . . . . . Recycled Matter . | . . . . . Retrieved Matter . | . . . . . Retrieved Components . | . . . . . Parts Scanalyzed . | . . . . . Part Schematics Acquired . | . . . . . Parts Damaged . | . . . . . Bothacking | -11 -10 -9 -8 -8 ------------ Run | Yrd Mat Mat Mat Gar Used RIF Installer . | . . . . . Robots Hacked . | . . . . . Non-combat . | . . . . . Combat . | . . . . . Robot Hacks Applied . | . . . . . Relay Couplers Released . | . . . . . Fabnet Peak Effective % . | . . . . . Robots Rewired . | . . . . . Allies Hacked . | . . . . . Hacks Repelled . | . . . . . Allies | -11 -10 -9 -8 -8 -------- Run | Yrd Mat Mat Mat Gar Total Allies . | . . . . . Largest Group . | . . . . . Highest-Rated Group . | . . . . . Highest-Rated Ally . | . . . . . Total Orders . | . . . . . Ally Attacks . | . . . . . Total Damage . | . . . . . Kills . | . . . . . Allies Corrupted . | . . . . . Allies Melted . | . . . . . Intel | -11 -10 -9 -8 -8 ------- Run | Yrd Mat Mat Mat Gar Robot Analysis Total . | . . . . . Derelict Logs Recovered . | . . . . . Drone Launches . | . . . . . Drone Recoveries . | . . . . . Exploration | -11 -10 -9 -8 -8 ------------- Run | Yrd Mat Mat Mat Gar Turns Passed 1934 | 69 283 809 300 473 Spaces Moved 880 | 44 140 329 139 228 Core 9 | 9 . . . . Treads 674 | . . 307 139 228 Legs 197 | 35 140 22 . . Wheels . | . . . . . Hover . | . . . . . Flight . | . . . . . Fastest Speed 50 | 50 120 160 152 152 Average Speed 151 | 124 129 162 153 152 Slowest Speed 260 | 190 190 260 160 225 Overloaded Moves . | . . . . . Propulsion Burnouts . | . . . . . Robots Hopped . | . . . . . Cave-ins Triggered . | . . . . . Exploration Rate (%) 25 | 3 28 41 16 37 Regions Visited 4 Branch Regions . Pre-discovered Areas . | . . . . . Known Exits Taken 1 | . . . 1 . Unknown Exits Taken 3 | 1 1 1 . . Scrap Searched . | . . . . . Spaces Dug . | . . . . . Terrain Destroyed 48 | . 48 . . . Melee . | . . . . . Projectile . | . . . . . AOE 48 | . 48 . . . Terrain Rammed . | . . . . . Walls Destroyed . | . . . . . Machines Disabled . | . . . . . Actions | -11 -10 -9 -8 -8 --------- Run | Yrd Mat Mat Mat Gar Total 1168 | 58 181 461 189 279 Wait 14 | . . 9 5 . Move 877 | 43 139 328 139 228 Hop . | . . . . . Pick Up 39 | 9 5 19 6 . Fast Attach 1 | . . 1 . . Attach 22 | 6 1 11 3 1 Detach . | . . . . . Swap 19 | . 2 5 8 4 Drop 20 | . 2 7 8 3 Fire 164 | . 31 76 19 38 Melee . | . . . . . Ram 5 | . . . . 5 Kick 1 | . 1 . . . Crush 6 | . . 5 1 . Escape Stasis . | . . . . . Rewire . | . . . . . Trap . | . . . . . Miscellaneous . | . . . . . Route ------- -11/Scrapyard -10/Materials -9/Materials (discovered 4 exits: *Mat / *Min / *Sto x2) -8/Materials -8/Garrison (discovered 1 exit: [*Fac]) History --------- Turn | Location | Event 27 | -11/Scrapyard | Discovered new exit (range 15) 70 | -11/Scrapyard | Entered Materials 312 | -10/Materials | Build established: Mutant 328 | -10/Materials | Discovered new exit (range 11) 353 | -10/Materials | Entered another Materials area 353 | -9/Materials | Evolved 2 slots: Utility x2 654 | -9/Materials | Discovered new exit (range 12) 701 | -9/Materials | Build established: Scavenger-Mutant 816 | -9/Materials | Identified exit to Mines 816 | -9/Materials | Identified exit to Storage 922 | -9/Materials | Lost 4 parts (1p1n2w) 1093 | -9/Materials | Core integrity fell below 50% 1100 | -9/Materials | Discovered new exit (range 15) 1162 | -9/Materials | Entered another Materials area 1162 | -8/Materials | Evolved 2 slots: Utility x2 1462 | -8/Materials | Identified exit to Garrison 1462 | -8/Materials | Entered Garrison 1638 | -8/Garrison | Triggered checkpoint 1730 | -8/Garrison | Triggered checkpoint 1733 | -8/Garrison | Triggered checkpoint 1890 | -8/Garrison | Discovered new exit (range 3) 1918 | -8/Garrison | Core integrity fell below 50% 1931 | -8/Garrison | Core integrity fell below 20% 1935 | -8/Garrison | Destroyed by Y-45 Defender with Heavy Assault Rifle Last Messages --------------- 01810_ Acquired 28 matter. 01890_ EXIT=FOUND 01901_ Triggered Alarm Trap. 01901_ An alarm sounds. 01907_ Lgt. Treads destroyed. 01907_ Imp. Ion Engine destroyed. 01909_ Imp. Light Armor Plating severed. 01916_ L-31 Rogue destroyed. 01917_ Hpw. Shotgun destroyed. 01920_ Acquired 24 matter. 01920_ Adv. Treads destroyed. 01922_ Pulse Rifle destroyed. 01922_ Hrd. Medium Armor Plating destroyed. 01926_ Hvy. Assault Rifle destroyed. 01926_ Slammed into L-31 Rogue. 01929_ Adv. Heat Sink destroyed. 01930_ Slammed into L-31 Rogue. 01930_ Destabilizing: Core damaged (-22). 01932_ Slammed into L-31 Rogue. 01935_ Critical hit (Burn: +37). Map ----- +----------------------------------------------------+ | | | | | | | | | | | | | | | | | | | | | | | | | ?????????????????????????????????????????????????? | | ?????????????????????????????????????????????????? | | ?????????????????????????????????????????????????? | | ?????????????????????????????????????????????????? | | ?????????????????????????????????????????????????? | | ???????#######???????????????????????????????????? | | ???????#"""""####????????????????????????????????? | | ???????#" " #????????????????????????????????? | | ???????#" #???#######??????????????????????? | | ??????##" " ##### #??????????????????????? | | ??????"""" """ + < #??????????????????????? | | ????????# " ##### #??????????????????????? | | ????????# #???### gl###????????????????????? | | ????????# #???# + l@+%#???????????+????????? | | ????????## ######???###gYg###????????????????????? | | ?????????# #????????? + +??????????????????????? | | ?????????# #????????### #??????????????????????? | | ?????????# #??????????# #??????????????????????? | | ?????????# #??????????# #??????????????????????? | | ?????????# #######????# #??????????????????????? | | ?????????# ##!!!!###### #??????????????????????? | | ?????????# + ?????????????+????????? | | ?????????# + ??????????????????????? | | ?????????# ##!!!!#+#### #??????????????????????? | | ?????????# #######????# #??????????????????????? | | ?????????# #??????????# #??????????????????????? | | ?????????# #??????????# ???????????????????????? | | ?????????# #??????????# ???????????????????????? | | ?????????# #??????????? ???????????????????????? | | ?????????# #????????+???????????????????+????????? | | ?????????# #?????????????????????????????????????? | | ?????????# #?????????????????????????????????????? | | ?????????# #?????????????????????????????????????? | | ##???????# #?????????????????????????????????????? | | #???????# #?????????????????????????????????????? | | #???????# #######??????????????????????????+????? | | #???????# +???????????????????????????????? | | #???##### #######???????????????????????????????? | +----------------------------------------------------+ Best States ------------- Heat Dissipation 50 Energy Generation 12 Energy Capacity 265 Matter Stores 300 Matter Capacity 300 Sight Range 16 Terrain Scan Density 10 Armor Coverage 375 Evasion (%) 55 Recoil Reduction 2 Offensive Hacking 20 Item Schematics ----------------- None Robot Schematics ------------------ None Fabricated ------------ Nothing Alien Tech Used ----------------- None Achievements -------------- None Challenges ------------ None Game ------ Seed HypercooledTransportModule Manual? 0 Play Time 00:16:48 Cumulative 34.2 hours Start 2024.05.24 @ 07:14:37 End 2024.05.26 @ 10:06:53 Sessions 3 Manual Loads 0 Difficulty Rogue Special Mode None Game No. 59 Rogue 59 Adventurer 0 Explorer 0 Win Type - Total 0 Types 0/0/0/0/0/0/0/0/0 Lore% 24 Gallery% 38 Achievement% 30 Wizard Run 0 Options --------- Layout 1 ASCII 0 Keyboard 0 Movement Mouse Keybinds 0 Fullscreen 1 Font 24/Smallcaps Map View 50x40 Zoom Use 0% Tactical HUD 1 Map Filters NONE Filters NONE Steam 1 RUN: 7957a64e-b863-42d7-88b6-6680be68a170